[Event "*** SCC Grand Prix: Titled Tuesday Blitz"]
[Site "Chess.com"]
[Date "2020.08.25"]
[Round "2"]
[White "hectorfiori"]
[Black "Margarita2907"]
[Result "0-1"]
[WhiteElo "2376"]
[BlackElo "2102"]
[TimeControl "180+1"]
[EndTime "10:21:03 PDT"]
[Termination "Margarita2907 won on time"]

1. e4 {[%clk 0:03:00.9]} 1... c5 {[%clk 0:02:59.2]} 2. Nf3 {[%clk 0:03:01.1]}
2... d6 {[%clk 0:02:59.2]} 3. d4 {[%clk 0:03:01.4]} 3... cxd4 {[%clk 0:02:59.7]}
4. Qxd4 {[%clk 0:03:02.1]} 4... Nf6 {[%clk 0:02:58.5]} 5. Bg5 {[%clk 0:02:55.1]}
5... Nc6 {[%clk 0:02:53.8]} 6. Bb5 {[%clk 0:02:55.3]} 6... Bd7 {[%clk
0:02:50.2]} 7. Bxc6 {[%clk 0:02:54.3]} 7... Bxc6 {[%clk 0:02:50.2]} 8. Nc3
{[%clk 0:02:54.3]} 8... e5 {[%clk 0:02:10.1]} 9. Qd3 {[%clk 0:02:47.8]} 9... h6
{[%clk 0:01:49.3]} 10. Bxf6 {[%clk 0:02:45.9]} 10... Qxf6 {[%clk 0:01:47.6]} 11.
O-O-O {[%clk 0:02:44.5]} 11... Be7 {[%clk 0:01:43.1]} 12. Nd5 {[%clk 0:02:38.3]}
12... Bxd5 {[%clk 0:01:40.2]} 13. Qxd5 {[%clk 0:02:39.2]} 13... Rb8 {[%clk
0:01:29.7]} 14. Qb5+ {[%clk 0:02:37.2]} 14... Kf8 {[%clk 0:01:26.4]} 15. Rd5
{[%clk 0:02:28.6]} 15... Qe6 {[%clk 0:01:23.3]} 16. Rhd1 {[%clk 0:02:24.7]}
16... g6 {[%clk 0:01:20.8]} 17. Kb1 {[%clk 0:02:18]} 17... Kg7 {[%clk
0:01:19.7]} 18. Qa5 {[%clk 0:02:06.1]} 18... a6 {[%clk 0:01:17]} 19. Qb6 {[%clk
0:02:00.2]} 19... Rhc8 {[%clk 0:01:14.8]} 20. h3 {[%clk 0:01:58.6]} 20... Rc6
{[%clk 0:01:08.1]} 21. Qa7 {[%clk 0:01:52.6]} 21... Qc8 {[%clk 0:01:07.2]} 22.
c3 {[%clk 0:01:47.1]} 22... Bf8 {[%clk 0:01:03.1]} 23. Qe3 {[%clk 0:01:44.5]}
23... b5 {[%clk 0:00:58.6]} 24. Nd2 {[%clk 0:01:14.9]} 24... b4 {[%clk
0:00:48.1]} 25. c4 {[%clk 0:01:14]} 25... Rc5 {[%clk 0:00:39]} 26. Rxc5 {[%clk
0:01:07.1]} 26... dxc5 {[%clk 0:00:38.3]} 27. Nf3 {[%clk 0:01:02.8]} 27... Qe6
{[%clk 0:00:27]} 28. Rd5 {[%clk 0:01:02.6]} 28... Bd6 {[%clk 0:00:20.8]} 29. Qd3
{[%clk 0:00:54.8]} 29... Rb6 {[%clk 0:00:20.6]} 30. b3 {[%clk 0:00:46.4]} 30...
f6 {[%clk 0:00:19.5]} 31. g4 {[%clk 0:00:43.8]} 31... Kf7 {[%clk 0:00:17.8]} 32.
Nh4 {[%clk 0:00:36.5]} 32... Rc6 {[%clk 0:00:11.6]} 33. Qg3 {[%clk 0:00:25.3]}
33... a5 {[%clk 0:00:11.4]} 34. Nf5 {[%clk 0:00:22.4]} 34... Bc7 {[%clk
0:00:09.7]} 35. Nxh6+ {[%clk 0:00:20.7]} 35... Kf8 {[%clk 0:00:09.7]} 36. Qh4
{[%clk 0:00:17.6]} 36... Rd6 {[%clk 0:00:08.8]} 37. g5 {[%clk 0:00:14.8]} 37...
Rxd5 {[%clk 0:00:05.6]} 38. cxd5 {[%clk 0:00:14.1]} 38... Qa6 {[%clk 0:00:04.6]}
39. Qg4 {[%clk 0:00:07.3]} 39... Qf1+ {[%clk 0:00:03.3]} 40. Kc2 {[%clk
0:00:07.6]} 40... Qxf2+ {[%clk 0:00:03.2]} 41. Kc1 {[%clk 0:00:07.6]} 41... Qe3+
{[%clk 0:00:03.2]} 42. Kd1 {[%clk 0:00:06.1]} 42... Qd4+ {[%clk 0:00:03.6]} 43.
Ke2 {[%clk 0:00:05.1]} 43... Qe3+ {[%clk 0:00:04.1]} 44. Kf1 {[%clk 0:00:05.3]}
44... Qd3+ {[%clk 0:00:03.7]} 45. Qe2 {[%clk 0:00:04.3]} 45... Qxe2+ {[%clk
0:00:03.6]} 46. Kxe2 {[%clk 0:00:05.2]} 46... fxg5 {[%clk 0:00:04.1]} 47. Ng4
{[%clk 0:00:05.6]} 47... Ke7 {[%clk 0:00:01.6]} 48. Kd3 {[%clk 0:00:05.7]} 48...
Bd6 {[%clk 0:00:02.1]} 49. Kc4 {[%clk 0:00:05.6]} 49... Kd7 {[%clk 0:00:02.8]}
50. Kb5 {[%clk 0:00:04.5]} 50... Bc7 {[%clk 0:00:02.4]} 51. Ne3 {[%clk
0:00:03.7]} 51... Kd6 {[%clk 0:00:02.5]} 52. Nc4+ {[%clk 0:00:02.6]} 52... Kd7
{[%clk 0:00:03.1]} 53. Kxc5 {[%clk 0:00:02.8]} 53... Bd8 {[%clk 0:00:03.4]} 54.
Kb5 {[%clk 0:00:03.3]} 54... Ke7 {[%clk 0:00:03.5]} 55. Nxa5 {[%clk 0:00:03.4]}
55... Kf6 {[%clk 0:00:03.4]} 56. Kxb4 {[%clk 0:00:03]} 56... g4 {[%clk
0:00:02.8]} 57. hxg4 {[%clk 0:00:03.7]} 57... Kg5 {[%clk 0:00:03.4]} 58. Nc4
{[%clk 0:00:03.5]} 58... Kxg4 {[%clk 0:00:03.5]} 59. Nxe5+ {[%clk 0:00:02.6]}
59... Kh5 {[%clk 0:00:04.1]} 60. Kb5 {[%clk 0:00:01.1]} 60... g5 {[%clk
0:00:03.1]} 0-1

[Event "*** SCC Grand Prix: Titled Tuesday Blitz"]
[Site "Chess.com"]
[Date "2020.08.25"]
[Round "2"]
[White "Taron_Shagbazyan"]
[Black "Savva09022009"]
[Result "1-0"]
[WhiteElo "2650"]
[BlackElo "2315"]
[TimeControl "180+1"]
[EndTime "10:21:05 PDT"]
[Termination "Taron_Shagbazyan won by checkmate"]

1. d4 {[%clk 0:03:00.9]} 1... Nf6 {[%clk 0:02:59.6]} 2. c4 {[%clk 0:03:01.4]}
2... e6 {[%clk 0:02:59.6]} 3. Nc3 {[%clk 0:03:01.4]} 3... Bb4 {[%clk 0:02:59.7]}
4. e3 {[%clk 0:03:01.9]} 4... d5 {[%clk 0:02:58.5]} 5. Bd3 {[%clk 0:03:01.9]}
5... O-O {[%clk 0:02:58.4]} 6. Ne2 {[%clk 0:03:02]} 6... b6 {[%clk 0:02:58.7]}
7. O-O {[%clk 0:02:59.6]} 7... Bb7 {[%clk 0:02:58]} 8. a3 {[%clk 0:02:58.3]}
8... Bxc3 {[%clk 0:02:57.7]} 9. Nxc3 {[%clk 0:02:58.3]} 9... dxc4 {[%clk
0:02:58.3]} 10. Bxc4 {[%clk 0:02:58]} 10... c5 {[%clk 0:02:58]} 11. dxc5 {[%clk
0:02:56.9]} 11... bxc5 {[%clk 0:02:58]} 12. Qc2 {[%clk 0:02:24]} 12... Qe7
{[%clk 0:02:55]} 13. b3 {[%clk 0:02:22.6]} 13... Nbd7 {[%clk 0:02:53.7]} 14. Bb2
{[%clk 0:02:22.1]} 14... Nb6 {[%clk 0:02:51.4]} 15. Be2 {[%clk 0:02:21.7]} 15...
Rac8 {[%clk 0:02:49.7]} 16. Rfd1 {[%clk 0:02:12]} 16... c4 {[%clk 0:02:47.3]}
17. b4 {[%clk 0:02:11.6]} 17... Nfd5 {[%clk 0:02:44.6]} 18. Nb5 {[%clk
0:02:08.3]} 18... a6 {[%clk 0:02:41.2]} 19. Nd4 {[%clk 0:02:08.5]} 19... e5
{[%clk 0:02:19]} 20. Nf5 {[%clk 0:02:06.5]} 20... Qg5 {[%clk 0:02:17]} 21. Ng3
{[%clk 0:01:55.6]} 21... c3 {[%clk 0:02:05.2]} 22. Bc1 {[%clk 0:01:53.6]} 22...
f5 {[%clk 0:02:02.4]} 23. Bf1 {[%clk 0:01:34.1]} 23... e4 {[%clk 0:02:00.4]} 24.
Rd4 {[%clk 0:01:30.1]} 24... h5 {[%clk 0:01:58.1]} 25. h3 {[%clk 0:01:24.9]}
25... h4 {[%clk 0:01:57.1]} 26. Ne2 {[%clk 0:01:24.9]} 26... Nd7 {[%clk
0:01:45]} 27. Nf4 {[%clk 0:01:24.3]} 27... Nxf4 {[%clk 0:01:39.7]} 28. exf4
{[%clk 0:01:25.2]} 28... Qe7 {[%clk 0:01:39.9]} 29. Be3 {[%clk 0:01:22.3]} 29...
Nf6 {[%clk 0:01:34.7]} 30. Rad1 {[%clk 0:01:20.3]} 30... Rfd8 {[%clk 0:01:32.2]}
31. Rxd8+ {[%clk 0:01:19.3]} 31... Rxd8 {[%clk 0:01:33.1]} 32. Rxd8+ {[%clk
0:01:18.2]} 32... Qxd8 {[%clk 0:01:33.8]} 33. Qxc3 {[%clk 0:01:18.8]} 33... Nd5
{[%clk 0:01:30.8]} 34. Qe5 {[%clk 0:01:09]} 34... Qd7 {[%clk 0:01:07]} 35. Bc5
{[%clk 0:01:00.5]} 35... Kh7 {[%clk 0:01:03.2]} 36. a4 {[%clk 0:00:53.4]} 36...
Bc6 {[%clk 0:00:52.2]} 37. b5 {[%clk 0:00:41.5]} 37... axb5 {[%clk 0:00:48.2]}
38. axb5 {[%clk 0:00:41.8]} 38... Bb7 {[%clk 0:00:47.9]} 39. b6 {[%clk
0:00:36.9]} 39... Qc6 {[%clk 0:00:42.3]} 40. Qxf5+ {[%clk 0:00:35.2]} 40... Kg8
{[%clk 0:00:39.6]} 41. Bd4 {[%clk 0:00:33.8]} 41... Nxb6 {[%clk 0:00:35.8]} 42.
Qc5 {[%clk 0:00:29.7]} 42... Qxc5 {[%clk 0:00:32.3]} 43. Bxc5 {[%clk 0:00:30.6]}
43... Nd5 {[%clk 0:00:32.2]} 44. Bd6 {[%clk 0:00:31.1]} 44... Kf7 {[%clk
0:00:29.9]} 45. Be2 {[%clk 0:00:28]} 45... e3 {[%clk 0:00:29.3]} 46. Bg4 {[%clk
0:00:20.5]} 46... Bc8 {[%clk 0:00:20.4]} 47. Bf3 {[%clk 0:00:19.8]} 47... exf2+
{[%clk 0:00:17.9]} 48. Kxf2 {[%clk 0:00:19.7]} 48... Nf6 {[%clk 0:00:18.4]} 49.
Be5 {[%clk 0:00:20]} 49... Bf5 {[%clk 0:00:18.2]} 50. Ke3 {[%clk 0:00:20.3]}
50... Nd7 {[%clk 0:00:16.4]} 51. Kd4 {[%clk 0:00:19.2]} 51... Nf6 {[%clk
0:00:16.7]} 52. Kc5 {[%clk 0:00:19.2]} 52... Ne4+ {[%clk 0:00:16.5]} 53. Kd4
{[%clk 0:00:19.3]} 53... Nd2 {[%clk 0:00:15.9]} 54. Bd5+ {[%clk 0:00:18.6]}
54... Kg6 {[%clk 0:00:15.4]} 55. Bc7 {[%clk 0:00:18.2]} 55... Nf1 {[%clk
0:00:15.3]} 56. Bd8 {[%clk 0:00:17.6]} 56... Kh5 {[%clk 0:00:15.4]} 57. Bf3+
{[%clk 0:00:17.9]} 57... Kg6 {[%clk 0:00:14.2]} 58. Bxh4 {[%clk 0:00:18.4]}
58... Nd2 {[%clk 0:00:14.4]} 59. Be2 {[%clk 0:00:18.2]} 59... Nb3+ {[%clk
0:00:14.3]} 60. Ke3 {[%clk 0:00:18.6]} 60... Nc5 {[%clk 0:00:14.8]} 61. g4
{[%clk 0:00:19.1]} 61... Bd7 {[%clk 0:00:14.7]} 62. Be7 {[%clk 0:00:19]} 62...
Nb7 {[%clk 0:00:10]} 63. Bc4 {[%clk 0:00:19]} 63... Na5 {[%clk 0:00:09.4]} 64.
f5+ {[%clk 0:00:18.3]} 64... Kh7 {[%clk 0:00:09.7]} 65. Bd3 {[%clk 0:00:18.6]}
65... Nc6 {[%clk 0:00:09.6]} 66. Bd6 {[%clk 0:00:18.9]} 66... Nd8 {[%clk
0:00:09.6]} 67. Kf4 {[%clk 0:00:18.8]} 67... Nf7 {[%clk 0:00:09.8]} 68. Be7
{[%clk 0:00:19.4]} 68... Kg8 {[%clk 0:00:09]} 69. h4 {[%clk 0:00:19.7]} 69...
Nh8 {[%clk 0:00:09.3]} 70. g5 {[%clk 0:00:19.9]} 70... g6 {[%clk 0:00:09]} 71.
fxg6 {[%clk 0:00:20.2]} 71... Be8 {[%clk 0:00:09.3]} 72. h5 {[%clk 0:00:20.3]}
72... Bxg6 {[%clk 0:00:09]} 73. hxg6 {[%clk 0:00:20.3]} 73... Kg7 {[%clk
0:00:09.3]} 74. Bf6+ {[%clk 0:00:20]} 74... Kg8 {[%clk 0:00:09.8]} 75. Bc4+
{[%clk 0:00:20.4]} 75... Nf7 {[%clk 0:00:09.6]} 76. gxf7+ {[%clk 0:00:19.3]}
76... Kf8 {[%clk 0:00:10.5]} 77. Bd4 {[%clk 0:00:18.9]} 77... Ke7 {[%clk
0:00:10.6]} 78. Bc5+ {[%clk 0:00:19.1]} 78... Kd7 {[%clk 0:00:11]} 79. f8=Q
{[%clk 0:00:19.3]} 79... Kc6 {[%clk 0:00:11.9]} 80. Qd6+ {[%clk 0:00:19.7]}
80... Kb7 {[%clk 0:00:11.7]} 81. Qb6+ {[%clk 0:00:20.2]} 81... Kc8 {[%clk
0:00:12.6]} 82. Be6# {[%clk 0:00:20.2]} 1-0

[Event "*** SCC Grand Prix: Titled Tuesday Blitz"]
[Site "Chess.com"]
[Date "2020.08.25"]
[Round "2"]
[White "Jovidon91"]
[Black "kngopal"]
[Result "1/2-1/2"]
[WhiteElo "2473"]
[BlackElo "2265"]
[TimeControl "180+1"]
[EndTime "10:21:06 PDT"]
[Termination "Game drawn by repetition"]

1. d4 {[%clk 0:03:00.2]} 1... Nf6 {[%clk 0:02:58]} 2. c4 {[%clk 0:02:58.8]} 2...
c6 {[%clk 0:02:58.2]} 3. Nf3 {[%clk 0:02:55.2]} 3... d5 {[%clk 0:02:57.7]} 4.
Qc2 {[%clk 0:02:55.2]} 4... e6 {[%clk 0:02:54.7]} 5. g3 {[%clk 0:02:52.8]} 5...
Be7 {[%clk 0:02:53.4]} 6. Bg2 {[%clk 0:02:52.3]} 6... Nbd7 {[%clk 0:02:53.2]} 7.
O-O {[%clk 0:02:51.1]} 7... O-O {[%clk 0:02:49.1]} 8. Nbd2 {[%clk 0:02:51.3]}
8... b6 {[%clk 0:02:46.1]} 9. e4 {[%clk 0:02:50.4]} 9... dxe4 {[%clk 0:02:33.4]}
10. Nxe4 {[%clk 0:02:51.3]} 10... Nxe4 {[%clk 0:02:31.6]} 11. Qxe4 {[%clk
0:02:52.2]} 11... Bb7 {[%clk 0:02:31.7]} 12. Ne5 {[%clk 0:02:50.2]} 12... Nxe5
{[%clk 0:02:19.7]} 13. dxe5 {[%clk 0:02:51.1]} 13... Rb8 {[%clk 0:02:19.2]} 14.
Bf4 {[%clk 0:02:32]} 14... c5 {[%clk 0:02:17.6]} 15. Qe3 {[%clk 0:02:30.1]}
15... Bxg2 {[%clk 0:02:15.8]} 16. Kxg2 {[%clk 0:02:30.1]} 16... Qc7 {[%clk
0:02:12.6]} 17. h4 {[%clk 0:02:26.8]} 17... Rbd8 {[%clk 0:02:09.1]} 18. Rad1
{[%clk 0:02:24.3]} 18... Qc6+ {[%clk 0:02:00.2]} 19. Kg1 {[%clk 0:02:20.9]}
19... Qa4 {[%clk 0:01:59.4]} 20. Qb3 {[%clk 0:02:16.3]} 20... Qc6 {[%clk
0:01:54.1]} 21. Rfe1 {[%clk 0:02:00.5]} 21... Rd4 {[%clk 0:01:49.5]} 22. Be3
{[%clk 0:01:56.5]} 22... Rg4 {[%clk 0:01:17.8]} 23. Qd3 {[%clk 0:01:48.3]} 23...
Bxh4 {[%clk 0:01:06]} 24. Bf4 {[%clk 0:01:10.6]} 24... h6 {[%clk 0:00:51]} 25.
Qd7 {[%clk 0:00:58.9]} 25... Qf3 {[%clk 0:00:47]} 26. Qd2 {[%clk 0:00:12.8]}
26... Rd8 {[%clk 0:00:43.4]} 27. Qe3 {[%clk 0:00:05.9]} 27... Qa8 {[%clk
0:00:26.8]} 28. Rxd8+ {[%clk 0:00:03.9]} 28... Qxd8 {[%clk 0:00:25.9]} 29. Qf3
{[%clk 0:00:03.5]} 29... Rg6 {[%clk 0:00:23.9]} 30. Rd1 {[%clk 0:00:04.4]} 30...
Qe7 {[%clk 0:00:22.6]} 31. Kf1 {[%clk 0:00:04.8]} 31... Bg5 {[%clk 0:00:20.7]}
32. Qa8+ {[%clk 0:00:04.8]} 32... Kh7 {[%clk 0:00:20.4]} 33. Qe4 {[%clk
0:00:05.3]} 33... Bxf4 {[%clk 0:00:20.7]} 34. Qxf4 {[%clk 0:00:06.2]} 34... Qb7
{[%clk 0:00:19.4]} 35. Kg1 {[%clk 0:00:06.2]} 35... f5 {[%clk 0:00:17.7]} 36.
Rd6 {[%clk 0:00:04.7]} 36... Qa6 {[%clk 0:00:16.7]} 37. a3 {[%clk 0:00:03.8]}
37... Qa5 {[%clk 0:00:17.1]} 38. Qd2 {[%clk 0:00:04]} 38... Qa4 {[%clk
0:00:16.5]} 39. Qd1 {[%clk 0:00:04]} 39... Qxc4 {[%clk 0:00:16.1]} 40. Rd8
{[%clk 0:00:04.6]} 40... Qg4 {[%clk 0:00:15.5]} 41. Qd7 {[%clk 0:00:04.5]} 41...
Qh3 {[%clk 0:00:13.5]} 42. Qe8 {[%clk 0:00:03.6]} 42... Rxg3+ {[%clk 0:00:13.2]}
43. fxg3 {[%clk 0:00:03]} 43... Qxg3+ {[%clk 0:00:13.4]} 44. Kf1 {[%clk
0:00:03.9]} 44... Qf4+ {[%clk 0:00:12.7]} 45. Kg2 {[%clk 0:00:03.8]} 45... Qg4+
{[%clk 0:00:12.1]} 46. Kf2 {[%clk 0:00:04.7]} 46... Qf4+ {[%clk 0:00:12.3]} 47.
Ke2 {[%clk 0:00:05.2]} 47... Qxe5+ {[%clk 0:00:12.4]} 48. Kd2 {[%clk 0:00:06]}
48... Qxb2+ {[%clk 0:00:12.2]} 49. Kd3 {[%clk 0:00:06.4]} 49... Qxa3+ {[%clk
0:00:12.2]} 50. Ke2 {[%clk 0:00:06.9]} 50... Qb2+ {[%clk 0:00:11.1]} 51. Ke1
{[%clk 0:00:07.3]} 51... Qc1+ {[%clk 0:00:09.5]} 52. Kf2 {[%clk 0:00:07.8]}
52... Qf4+ {[%clk 0:00:08.7]} 53. Ke2 {[%clk 0:00:07.8]} 53... Qe4+ {[%clk
0:00:08.7]} 54. Kd2 {[%clk 0:00:07.8]} 54... Qb4+ {[%clk 0:00:07.9]} 55. Kd1
{[%clk 0:00:06.9]} 55... Qb1+ {[%clk 0:00:07.3]} 56. Ke2 {[%clk 0:00:06.2]}
56... Qe4+ {[%clk 0:00:07]} 57. Kf2 {[%clk 0:00:06.6]} 57... Qf4+ {[%clk
0:00:07.1]} 58. Ke1 {[%clk 0:00:06.4]} 58... Qe4+ {[%clk 0:00:06.8]} 59. Kd1
{[%clk 0:00:06.5]} 59... Qb1+ {[%clk 0:00:06.7]} 60. Kd2 {[%clk 0:00:05.8]}
60... Qb2+ {[%clk 0:00:06.7]} 61. Ke3 {[%clk 0:00:06]} 61... Qe5+ {[%clk
0:00:06.8]} 62. Kf2 {[%clk 0:00:06.4]} 62... Qf4+ {[%clk 0:00:06.8]} 1/2-1/2

[Event "*** SCC Grand Prix: Titled Tuesday Blitz"]
[Site "Chess.com"]
[Date "2020.08.25"]
[Round "2"]
[White "Smascher17"]
[Black "Artooooo"]
[Result "0-1"]
[WhiteElo "2501"]
[BlackElo "2796"]
[TimeControl "180+1"]
[EndTime "10:21:12 PDT"]
[Termination "Artooooo won by resignation"]

1. e4 {[%clk 0:03:00.9]} 1... e6 {[%clk 0:02:59.8]} 2. d4 {[%clk 0:03:00.1]}
2... d5 {[%clk 0:03:00.7]} 3. Nd2 {[%clk 0:03:00.2]} 3... Nc6 {[%clk 0:03:01.4]}
4. Ngf3 {[%clk 0:02:59.5]} 4... Nf6 {[%clk 0:03:01.7]} 5. e5 {[%clk 0:02:58.8]}
5... Nd7 {[%clk 0:03:02.5]} 6. c3 {[%clk 0:02:58.9]} 6... f6 {[%clk 0:03:02.6]}
7. exf6 {[%clk 0:02:59.1]} 7... Qxf6 {[%clk 0:03:03.5]} 8. Bd3 {[%clk
0:02:58.9]} 8... e5 {[%clk 0:03:03.8]} 9. dxe5 {[%clk 0:02:58.6]} 9... Ncxe5
{[%clk 0:03:04.7]} 10. Nxe5 {[%clk 0:02:59]} 10... Nxe5 {[%clk 0:03:05.6]} 11.
Be2 {[%clk 0:02:58.6]} 11... Bd6 {[%clk 0:03:05.3]} 12. Nf3 {[%clk 0:02:58]}
12... c6 {[%clk 0:03:04.9]} 13. h3 {[%clk 0:02:50.7]} 13... O-O {[%clk
0:03:04.1]} 14. Be3 {[%clk 0:02:49.7]} 14... Qg6 {[%clk 0:02:43.4]} 15. Nxe5
{[%clk 0:02:26.8]} 15... Bxe5 {[%clk 0:02:43.6]} 16. Bf3 {[%clk 0:02:26.8]}
16... Bf5 {[%clk 0:02:40.7]} 17. Qd2 {[%clk 0:02:23.8]} 17... Kh8 {[%clk
0:02:10.9]} 18. O-O-O {[%clk 0:02:18]} 18... a5 {[%clk 0:02:01.7]} 19. h4 {[%clk
0:01:53.3]} 19... h6 {[%clk 0:01:49]} 20. h5 {[%clk 0:01:51.9]} 20... Qf7 {[%clk
0:01:49.2]} 21. g4 {[%clk 0:01:32.5]} 21... Bh7 {[%clk 0:01:15]} 22. Be2 {[%clk
0:01:27.7]} 22... a4 {[%clk 0:01:01.6]} 23. a3 {[%clk 0:00:46.5]} 23... Bf4
{[%clk 0:01:01.1]} 24. Bxf4 {[%clk 0:00:33.7]} 24... Qxf4 {[%clk 0:01:02]} 25.
Qxf4 {[%clk 0:00:32.5]} 25... Rxf4 {[%clk 0:01:02.9]} 26. f3 {[%clk 0:00:33]}
26... Re8 {[%clk 0:00:38.8]} 27. Rhe1 {[%clk 0:00:32]} 27... b5 {[%clk
0:00:35.9]} 28. Kd2 {[%clk 0:00:29.4]} 28... Kg8 {[%clk 0:00:29]} 29. Rf1 {[%clk
0:00:22.7]} 29... Kf7 {[%clk 0:00:19.4]} 30. Rde1 {[%clk 0:00:22.6]} 30... g6
{[%clk 0:00:08.3]} 31. hxg6+ {[%clk 0:00:21.4]} 31... Bxg6 {[%clk 0:00:09.2]}
32. Bd1 {[%clk 0:00:20.2]} 32... Rxe1 {[%clk 0:00:10]} 33. Rxe1 {[%clk
0:00:21.1]} 33... h5 {[%clk 0:00:09.7]} 34. gxh5 {[%clk 0:00:20.7]} 34... Bxh5
{[%clk 0:00:10.6]} 35. Ke3 {[%clk 0:00:21]} 35... Rf6 {[%clk 0:00:10.6]} 36. Rg1
{[%clk 0:00:20.9]} 36... Bg6 {[%clk 0:00:09.2]} 37. Be2 {[%clk 0:00:18.6]} 37...
Re6+ {[%clk 0:00:09.2]} 38. Kd2 {[%clk 0:00:18]} 38... Rf6 {[%clk 0:00:09]} 39.
Rh1 {[%clk 0:00:17.3]} 39... Ke6 {[%clk 0:00:09]} 40. Ke3 {[%clk 0:00:16]} 40...
Kd6 {[%clk 0:00:09.2]} 41. Rh8 {[%clk 0:00:15.4]} 41... Re6+ {[%clk 0:00:09.2]}
42. Kd2 {[%clk 0:00:15.6]} 42... Kc5 {[%clk 0:00:09.2]} 43. Rh6 {[%clk
0:00:15.4]} 43... Kd6 {[%clk 0:00:08.9]} 44. f4 {[%clk 0:00:15.1]} 44... Ke7
{[%clk 0:00:07.6]} 45. Bh5 {[%clk 0:00:13.5]} 45... Bxh5 {[%clk 0:00:04.8]} 46.
Rxh5 {[%clk 0:00:14.4]} 46... Re4 {[%clk 0:00:04.5]} 47. Rh4 {[%clk 0:00:12.4]}
47... Kd6 {[%clk 0:00:04.2]} 48. Rh6+ {[%clk 0:00:12.3]} 48... Kc5 {[%clk
0:00:04.9]} 49. Rf6 {[%clk 0:00:12.6]} 49... Kb6 {[%clk 0:00:04.1]} 50. Kd3
{[%clk 0:00:12.3]} 50... Kc5 {[%clk 0:00:04.5]} 51. f5 {[%clk 0:00:12.4]} 51...
Re1 {[%clk 0:00:04.2]} 52. Rf8 {[%clk 0:00:12.3]} 52... Rb1 {[%clk 0:00:04.7]}
53. Kc2 {[%clk 0:00:12.3]} 53... Rf1 {[%clk 0:00:04.5]} 54. f6 {[%clk
0:00:12.6]} 54... Kc4 {[%clk 0:00:05.1]} 55. f7 {[%clk 0:00:10.3]} 55... Rf2+
{[%clk 0:00:06]} 56. Kc1 {[%clk 0:00:10.5]} 56... Kb3 {[%clk 0:00:05.6]} 57. Kd1
{[%clk 0:00:08.2]} 57... Kxb2 {[%clk 0:00:05.4]} 58. Ke1 {[%clk 0:00:08.6]}
58... Rf6 {[%clk 0:00:05.8]} 59. Kd2 {[%clk 0:00:08.8]} 59... Kxa3 {[%clk
0:00:06.2]} 60. Kd3 {[%clk 0:00:09.1]} 60... Kb3 {[%clk 0:00:05.7]} 61. Kd4
{[%clk 0:00:07.7]} 61... a3 {[%clk 0:00:06.2]} 62. Ke5 {[%clk 0:00:08.1]} 62...
Rf1 {[%clk 0:00:05.7]} 63. Kd4 {[%clk 0:00:07.2]} 63... a2 {[%clk 0:00:06]} 64.
Ra8 {[%clk 0:00:07.2]} 64... Rxf7 {[%clk 0:00:05.6]} 65. Kc5 {[%clk 0:00:07.1]}
65... Rf4 {[%clk 0:00:05.3]} 66. Kxc6 {[%clk 0:00:07]} 66... Ra4 {[%clk
0:00:06]} 0-1